fUST/lending_fUST_20250810
["ID","MTS","AMOUNT","RATE_DAILY","PERIOD"]
[378168732,1754760643732,-611.51010086,0.00021819,2]
[378168734,1754760643742,-611.51010086,0.00021819,2]
[378168736,1754760643751,-611.51010086,0.00021819,2]
[378168738,1754760643760,-611.51010086,0.00021819,2]
[378168740,1754760643769,-611.51010086,0.00021819,2]
[378168742,1754760643779,-611.51010086,0.00021819,2]
[378168744,1754760643789,-611.51010086,0.00021819,2]
[378168746,1754760643798,-611.51010086,0.00021819,2]
[378168748,1754760643808,-611.51010086,0.00021819,2]
[378168750,1754760643818,-611.51010086,0.00021819,2]
[378168752,1754760643827,-611.51010086,0.00021819,2]
[378168755,1754760643837,-611.51010086,0.00021819,2]
[378168757,1754760643847,-611.51010086,0.00021819,2]
[378168759,1754760643866,-611.51010086,0.00021819,2]
[378168761,1754760643875,-611.51010086,0.00021819,2]
[378168763,1754760643884,-611.51010086,0.00021819,2]
[378168765,1754760643893,-465.46,0.00021819,2]
[378168767,1754760643903,-460.0,0.0002182,2]
[378168769,1754760643912,-460.0,0.0002182,2]
[378168771,1754760643921,-460.0,0.0002182,2]
[378168773,1754760643931,-225.82892987,0.0002182,2]
[378168775,1754760643941,-460.0,0.0002182,2]
[378168777,1754760643951,-460.0,0.0002182,2]
[378168779,1754760643960,-466.25,0.0002182,2]
[378168781,1754760643970,-460.0,0.0002182,2]
[378168783,1754760643979,-460.0,0.0002182,2]
[378168785,1754760643988,-460.0,0.0002182,2]
[378168787,1754760644000,-596.8,0.0002182,2]
[378168789,1754760644016,-460.0,0.0002182,2]
[378168791,1754760644026,-460.0,0.0002182,2]
[378168793,1754760644035,-460.0,0.0002182,2]
[378168795,1754760644045,-460.0,0.0002182,2]
[378168797,1754760644056,-460.0,0.0002182,2]
[378168799,1754760644065,-562.22,0.0002182,2]
[378168801,1754760644074,-489.24,0.0002182,2]
[378168803,1754760644085,-460.0,0.0002182,2]
[378168805,1754760644094,-460.0,0.0002182,2]
[378168807,1754760644104,-1110.78,0.0002182,2]
[378168809,1754760644115,-460.0,0.0002182,2]
[378168811,1754760644125,-1309.57,0.0002182,2]
[378168813,1754760644134,-460.0,0.0002182,2]
[378168815,1754760644143,-1352.75,0.0002182,2]
[378168817,1754760644153,-460.0,0.0002182,2]
[378168819,1754760644162,-460.0,0.0002182,2]
[378168821,1754760644172,-460.0,0.0002182,2]
[378168823,1754760644181,-460.0,0.0002182,2]
[378168825,1754760644191,-460.0,0.0002182,2]
[378168827,1754760644200,-460.0,0.0002182,2]
[378168829,1754760644209,-460.0,0.0002182,2]
[378168831,1754760644218,-460.0,0.00021821,2]
[378168833,1754760644227,-538.71538902,0.00021821,2]
[378168835,1754760644236,-460.0,0.00021821,2]
[378168837,1754760644246,-367.02677627,0.00021821,2]
[378168839,1754760644255,-460.0,0.00021821,2]
[378168842,1754760644264,-460.0,0.00021821,2]
[378168844,1754760644273,-460.0,0.00021821,2]
[378168847,1754760644282,-460.0,0.00021821,2]
[378168849,1754760644292,-460.0,0.00021821,2]
[378168851,1754760644302,-693.5,0.00021821,2]
[378168853,1754760644311,-362.1,0.00021821,2]
[378168855,1754760644320,-460.0,0.00021821,2]
[378168857,1754760644329,-460.0,0.00021821,2]
[378168859,1754760644338,-460.0,0.00021821,2]
[378168861,1754760644347,-460.0,0.00021821,2]
[378168863,1754760644357,-476.10203087,0.00021821,2]
[378168865,1754760644367,-460.0,0.00021821,2]
[378168867,1754760644377,-460.0,0.00021821,2]
[378168869,1754760644386,-500.0,0.00021873,2]
[378168871,1754760644396,-500.0,0.00021873,2]
[378168873,1754760644405,-500.0,0.00021873,2]
[378168875,1754760644414,-502.63167957,0.00021873,2]
[378168877,1754760644423,-500.0,0.00021873,2]
[378168879,1754760644433,-500.0,0.00021873,2]
[378168881,1754760644442,-500.0,0.00021873,2]
[378168883,1754760644452,-422.92991732,0.00021873,2]
[378168885,1754760644461,-500.56168595,0.00021873,2]
[378168887,1754760644471,-500.67139671,0.00021873,2]
[378168889,1754760644480,-500.0,0.00021873,2]
[378168891,1754760644490,-500.0,0.00021873,2]
[378168893,1754760644500,-503.28221012,0.00021873,2]
[378168895,1754760644509,-500.0,0.00021873,2]
[378168897,1754760644519,-500.0,0.00021873,2]
[378168899,1754760644529,-500.0,0.00021873,2]
[378168901,1754760644538,-500.0,0.00021873,2]
[378168903,1754760644548,-500.0,0.00021873,2]
[378168905,1754760644557,-500.0,0.00021873,2]
[378168907,1754760644567,-500.0,0.00021873,2]
[378168909,1754760644577,-500.0,0.00021873,2]
[378168911,1754760644587,-500.0,0.00021873,2]
[378168913,1754760644597,-500.0,0.00021873,2]
[378168915,1754760644606,-500.0,0.00021873,2]
[378168917,1754760644615,-144405.33595451,0.0002189,2]
[378168919,1754760644625,-1075.28920851,0.0002191,2]
[378168921,1754760644634,-500.0,0.00021917,2]
[378168923,1754760644644,-1716.24,0.00021917,2]
[378168925,1754760644654,-152.57967547,0.00021918,2]
[378168927,1754760644663,-500.0,0.00021973,2]
[378168929,1754760644673,-200.0,0.00021973,15]
[378168931,1754760644682,-200.0,0.00021973,15]
[378168933,1754760644691,-200.0,0.00021973,15]
[378168935,1754760644701,-200.0,0.00021973,15]
[378168937,1754760644710,-200.0,0.00021973,15]
[378168939,1754760644720,-78495.63505698,0.0002199,2]
[378168941,1754760644729,-5000.0,0.00021997,2]
[378168943,1754760644738,-219.0,0.00022,2]
[378168945,1754760644747,-168.0,0.00022,2]
[378168947,1754760644758,-259.14114881,0.00022073,2]
[378168949,1754760644767,-293.80265538,0.00022091,2]
[378168951,1754760644777,-460.0,0.00022091,2]
[378168953,1754760644786,-460.0,0.00022091,2]
[378168955,1754760644796,-912.75,0.00022091,2]
[378168957,1754760644805,-460.0,0.00022091,2]
[378168959,1754760644815,-460.0,0.00022091,2]
[378168961,1754760644824,-460.0,0.00022091,2]
[378168963,1754760644834,-460.0,0.00022092,2]
[378168965,1754760644843,-2038.49,0.00022092,2]
[378168967,1754760644852,-460.0,0.00022092,2]
[378168969,1754760644862,-460.0,0.00022092,2]
[378168971,1754760644871,-853.66,0.00022092,2]
[378168973,1754760644880,-460.0,0.00022092,2]
[378168975,1754760644890,-460.0,0.00022092,2]
[378168977,1754760644900,-1605.05,0.00022092,2]
[378168979,1754760644909,-460.0,0.00022092,2]
[378168981,1754760644918,-460.0,0.00022092,2]
[378168983,1754760644927,-1748.2,0.00022092,2]
[378168985,1754760644937,-460.0,0.00022092,2]
[378168987,1754760644946,-460.0,0.00022092,2]
[378168989,1754760644955,-460.0,0.00022092,2]
[378168991,1754760644964,-460.0,0.00022092,2]
[378168993,1754760644973,-734.63,0.00022092,2]
[378168995,1754760644983,-460.0,0.00022092,2]
[378168997,1754760644992,-460.0,0.00022092,2]
[378168999,1754760645002,-460.0,0.00022092,2]
[378169001,1754760645015,-536.11,0.00022092,2]
[378169004,1754760645030,-460.0,0.00022092,2]
[378169005,1754760645039,-547.32,0.00022092,2]
[378169008,1754760645049,-460.0,0.00022092,2]
[378169010,1754760645058,-460.0,0.00022092,2]
[378169012,1754760645067,-1497.02,0.00022092,2]
[378169014,1754760645076,-460.0,0.00022092,2]
[378169016,1754760645086,-460.0,0.00022092,2]
[378169018,1754760645095,-460.0,0.00022092,2]
[378169021,1754760645105,-460.0,0.00022093,2]
[378169023,1754760645114,-460.0,0.00022093,2]
[378169024,1754760645123,-460.0,0.00022093,2]
[378169025,1754760645133,-460.0,0.00022093,2]
[378169026,1754760645142,-460.0,0.00022093,2]
[378169027,1754760645151,-460.0,0.00022093,2]
[378169028,1754760645160,-460.0,0.00022093,2]
[378169029,1754760645170,-460.0,0.00022093,2]
[378169030,1754760645179,-621.04,0.00022093,2]
[378169031,1754760645189,-460.0,0.00022093,2]
[378169032,1754760645199,-460.0,0.00022093,2]
[378169034,1754760645208,-460.0,0.00022093,2]
[378169035,1754760645217,-460.0,0.00022093,2]
[378169036,1754760645226,-460.0,0.00022093,2]
[378169037,1754760645235,-460.0,0.00022093,2]
[378169038,1754760645244,-460.0,0.00022093,2]
[378169039,1754760645254,-460.0,0.00022093,2]
[378169040,1754760645263,-349.14800454,0.00022093,2]
[378169041,1754760645273,-460.0,0.00022093,2]
[378169042,1754760645282,-460.0,0.00022093,2]
[378169043,1754760645292,-460.0,0.00022093,2]
[378169044,1754760645301,-490.67,0.00022093,2]
[378169045,1754760645310,-948.6,0.00022093,2]
[378169046,1754760645320,-460.0,0.00022093,2]
[378169047,1754760645329,-220.02,0.00022093,2]
[378169048,1754760645339,-1597.6,0.00022093,2]
[378169049,1754760645348,-460.0,0.00022093,2]
[378169050,1754760645358,-460.0,0.00022093,2]
[378169051,1754760645367,-460.0,0.00022093,2]
[378169053,1754760645376,-287.47810663,0.00022093,2]
[378169055,1754760645385,-460.0,0.00022093,2]
[378169057,1754760645394,-3785.91,0.00022093,2]
[378169059,1754760645404,-462.80880441,0.00022093,2]
[378169061,1754760645413,-460.0,0.00022093,2]
[378169063,1754760645422,-460.0,0.00022093,2]
[378169065,1754760645431,-460.0,0.00022093,2]
[378169066,1754760645441,-460.0,0.00022093,2]
[378169069,1754760645451,-460.0,0.00022093,2]
[378169071,1754760645461,-460.0,0.00022093,2]
[378169073,1754760645470,-985.24,0.00022093,2]
[378169075,1754760645480,-460.0,0.00022093,2]
[378169077,1754760645489,-612.98,0.00022093,2]
[378169079,1754760645498,-460.0,0.00022093,2]
[378169081,1754760645507,-460.0,0.00022093,2]
[378169083,1754760645517,-678.47,0.00022093,2]
[378169085,1754760645526,-460.0,0.00022093,2]
[378169087,1754760645536,-460.0,0.00022093,2]
[378169089,1754760645545,-1095.78,0.00022093,2]
[378169091,1754760645554,-460.0,0.00022093,2]
[378169093,1754760645563,-460.0,0.00022093,2]
[378169095,1754760645572,-460.0,0.00022093,2]
[378169097,1754760645581,-1079.1,0.00022093,2]
[378169099,1754760645590,-460.0,0.00022093,2]
[378169101,1754760645600,-460.0,0.00022093,2]
[378169103,1754760645609,-460.0,0.00022093,2]
[378169105,1754760645618,-460.0,0.00022093,2]
[378169107,1754760645627,-460.0,0.00022093,2]
[378169109,1754760645636,-579.29,0.00022093,2]
[378169111,1754760645645,-460.0,0.00022093,2]
[378169113,1754760645654,-886.05,0.00022093,2]
[378169115,1754760645664,-465.46,0.00022093,2]
[378169117,1754760645673,-460.0,0.00022094,2]
[378169119,1754760645682,-460.0,0.00022094,2]
[378169121,1754760645692,-460.0,0.00022094,2]
[378169123,1754760645701,-549.62,0.00022094,2]
[378169125,1754760645710,-466.25,0.00022094,2]
[378169127,1754760645719,-460.0,0.00022094,2]
[378169128,1754760645728,-460.0,0.00022094,2]
[378169129,1754760645738,-460.0,0.00022094,2]
[378169131,1754760645747,-596.8,0.00022094,2]
[378169132,1754760645756,-460.0,0.00022094,2]
[378169133,1754760645766,-460.0,0.00022094,2]
[378169134,1754760645775,-460.0,0.00022094,2]
[378169135,1754760645785,-460.0,0.00022094,2]
[378169136,1754760645794,-562.22,0.00022094,2]
[378169137,1754760645803,-489.24,0.00022094,2]
[378169138,1754760645813,-152.97743756,0.00022094,2]
[378169139,1754760645822,-460.0,0.00022094,2]
[378169140,1754760645831,-1110.78,0.00022094,2]
[378169141,1754760645840,-460.0,0.00022094,2]
[378169142,1754760645849,-1309.57,0.00022094,2]
[378169143,1754760645859,-1352.75,0.00022094,2]
[378169144,1754760645868,-460.0,0.00022094,2]
[378169145,1754760645877,-469.88870094,0.00022094,2]
[378169146,1754760645886,-460.0,0.00022094,2]
[378169147,1754760645895,-224.37148239,0.00022094,2]
[378169148,1754760645904,-460.0,0.00022094,2]
[378169149,1754760645914,-460.0,0.00022094,2]
[378169150,1754760645923,-464.69163569,0.00022095,2]
[378169151,1754760645933,-469.17228992,0.00022095,2]
[378169152,1754760645942,-580.29633935,0.00022095,2]
[378169153,1754760645951,-460.0,0.00022095,2]
[378169154,1754760645961,-460.0,0.00022095,2]
[378169155,1754760645971,-693.5,0.00022095,2]
[378169156,1754760645980,-460.0,0.00022095,2]
[378169157,1754760645989,-460.0,0.00022095,2]
[378169158,1754760645999,-460.0,0.00022095,2]
[378169159,1754760646012,-151.0,0.000221,9]
[378169160,1754760646021,-1075.28920851,0.00022121,2]
[378169161,1754760646031,-283.0,0.00022127,2]
[378169162,1754760646040,-41486.2931646,0.000223,4]
[378169163,1754760646051,-1075.28920851,0.00022331,2]
[378169164,1754760646060,-460.0,0.00022365,2]
[378169165,1754760646069,-460.0,0.00022365,2]
[378169166,1754760646079,-912.75,0.00022365,2]
[378169167,1754760646088,-460.0,0.00022365,2]
[378169168,1754760646097,-460.0,0.00022365,2]
[378169170,1754760646107,-357.18,0.00022366,2]
[378169171,1754760646116,-460.0,0.00022366,2]
[378169173,1754760646125,-2038.49,0.00022366,2]
[378169176,1754760646134,-460.0,0.00022366,2]
[378169178,1754760646144,-460.0,0.00022366,2]
[378169179,1754760646153,-853.66,0.00022366,2]
[378169181,1754760646163,-460.0,0.00022366,2]
[378169183,1754760646172,-460.0,0.00022366,2]
[378169185,1754760646182,-1605.05,0.00022366,2]
[378169187,1754760646191,-526.76337393,0.00022366,2]
[378169189,1754760646200,-1748.2,0.00022366,2]
[378169192,1754760646210,-460.0,0.00022366,2]
[378169194,1754760646220,-460.0,0.00022366,2]
[378169196,1754760646230,-460.0,0.00022366,2]
[378169198,1754760646240,-734.63,0.00022366,2]
[378169200,1754760646249,-460.0,0.00022366,2]
[378169202,1754760646259,-460.0,0.00022366,2]
[378169204,1754760646268,-460.0,0.00022366,2]
[378169206,1754760646278,-536.11,0.00022366,2]
[378169208,1754760646288,-547.32,0.00022366,2]
[378169210,1754760646297,-460.0,0.00022366,2]
[378169212,1754760646306,-460.0,0.00022366,2]
[378169214,1754760646316,-1497.02,0.00022366,2]
[378169216,1754760646327,-470.67233647,0.00022366,2]
[378169218,1754760646336,-329.0,0.00022366,2]
[378169220,1754760646345,-232.26,0.00022367,2]
[378169222,1754760646355,-460.0,0.00022367,2]
[378169224,1754760646364,-530.6629841,0.00022367,2]
[378169226,1754760646374,-460.0,0.00022367,2]
[378169228,1754760646384,-460.0,0.00022367,2]
[378169230,1754760646393,-460.0,0.00022367,2]
[378169232,1754760646402,-621.04,0.00022367,2]
[378169234,1754760646411,-460.0,0.00022367,2]
[378169236,1754760646420,-460.0,0.00022367,2]
[378169238,1754760646430,-460.0,0.00022367,2]
[378169240,1754760646439,-460.0,0.00022367,2]
[378169242,1754760646448,-460.0,0.00022367,2]
[378169244,1754760646457,-460.0,0.00022367,2]
[378169246,1754760646466,-460.0,0.00022367,2]
[378169248,1754760646476,-460.0,0.00022367,2]
[378169250,1754760646486,-460.0,0.00022367,2]
[378169252,1754760646495,-490.67,0.00022367,2]
[378169254,1754760646504,-948.6,0.00022367,2]
[378169256,1754760646513,-1597.6,0.00022367,2]
[378169258,1754760646524,-324.47115293,0.00022367,2]
[378169260,1754760646534,-472.42257431,0.00022367,2]
[378169262,1754760646543,-460.0,0.00022367,2]
[378169264,1754760646553,-460.0,0.00022367,2]
[378169266,1754760646562,-3785.91,0.00022367,2]
[378169268,1754760646571,-387.36538644,0.00022367,2]
[378169270,1754760646581,-460.0,0.00022367,2]
[378169272,1754760646590,-460.0,0.00022367,2]
[378169287,1754760646717,-460.0,0.00022367,2]
[378169289,1754760646727,-460.0,0.00022367,2]
[378169291,1754760646737,-985.24,0.00022367,2]
[378169293,1754760646746,-460.0,0.00022367,2]
[378169294,1754760646755,-612.98,0.00022367,2]
[378169295,1754760646765,-460.0,0.00022367,2]
[378169296,1754760646774,-460.0,0.00022367,2]
[378169297,1754760646784,-678.47,0.00022367,2]
[378169298,1754760646794,-460.0,0.00022367,2]
[378169299,1754760646803,-460.0,0.00022367,2]
[378169300,1754760646813,-1095.78,0.00022367,2]
[378169302,1754760646822,-460.0,0.00022367,2]
[378169304,1754760646832,-460.0,0.00022367,2]
[378169306,1754760646842,-460.0,0.00022367,2]
[378169307,1754760646851,-1079.1,0.00022367,2]
[378169310,1754760646861,-460.0,0.00022367,2]
[378169312,1754760646870,-460.0,0.00022367,2]
[378169313,1754760646881,-460.0,0.00022367,2]
[378169316,1754760646890,-579.29,0.00022367,2]
[378169318,1754760646900,-460.0,0.00022367,2]
[378169320,1754760646909,-886.05,0.00022367,2]
[378169321,1754760646918,-465.46,0.00022367,2]
[378169323,1754760646929,-460.0,0.00022368,2]
[378169325,1754760646938,-460.0,0.00022368,2]
[378169327,1754760646948,-338.04315626,0.00022368,2]
[378169329,1754760646957,-466.25,0.00022368,2]
[378169331,1754760646966,-460.0,0.00022368,2]
[378169332,1754760646975,-460.0,0.00022368,2]
[378169333,1754760646984,-460.0,0.00022368,2]
[378169334,1754760646993,-596.8,0.00022368,2]
[378169335,1754760647005,-460.0,0.00022368,2]
[378169336,1754760647015,-460.0,0.00022368,2]
[378169337,1754760647024,-460.0,0.00022368,2]
[378169338,1754760647033,-562.22,0.00022368,2]
[378169339,1754760647043,-489.24,0.00022368,2]
[378169340,1754760647054,-1110.78,0.00022368,2]
[378169341,1754760647063,-460.0,0.00022368,2]
[378169342,1754760647072,-1309.57,0.00022368,2]
[378169343,1754760647082,-1352.75,0.00022368,2]
[378169344,1754760647091,-460.0,0.00022368,2]
[378169345,1754760647101,-460.0,0.00022368,2]
[378169346,1754760647110,-460.0,0.00022368,2]
[378169347,1754760647119,-460.0,0.00022368,2]
[378169348,1754760647129,-460.0,0.00022369,2]
[378169349,1754760647138,-460.0,0.00022369,2]
[378169350,1754760647147,-693.5,0.00022369,2]
[378169351,1754760647157,-460.0,0.00022369,2]
[378169352,1754760647168,-204.60908619,0.00022388,2]
[378169353,1754760647178,-462.19098661,0.00022421,2]
[378169354,1754760647187,-1000.0,0.00022421,2]
[378169355,1754760647196,-500.0,0.00022421,2]
[378169356,1754760647205,-1000.0,0.00022421,2]
[378169357,1754760647214,-500.0,0.00022421,2]
[378169358,1754760647224,-1000.0,0.00022421,2]
[378169359,1754760647233,-527.77735381,0.00022444,2]
[378169360,1754760647242,-215.40758176,0.00022444,2]
[378169361,1754760647251,-842.95011917,0.00022444,2]
[378169362,1754760647260,-461.55179734,0.00022444,2]
[378169363,1754760647270,-231.92402426,0.00022444,2]
[378169364,1754760647279,-160.0,0.00022444,2]
[378169365,1754760647288,-160.0,0.00022444,2]
[378169366,1754760647297,-216.61183532,0.00022444,2]
[378169367,1754760647306,-12666.14847857,0.00022444,2]
[378169368,1754760647315,-160.0,0.00022444,2]
[378169369,1754760647325,-160.0,0.00022444,2]
[378169370,1754760647335,-160.0,0.00022444,2]
[378169371,1754760647345,-312.16666667,0.00022451,2]
[378169372,1754760647355,-160.0,0.00022519,2]
[378169373,1754760647364,-1075.28920851,0.00022542,2]
[378169374,1754760647374,-250.0,0.00022586,2]
[378169375,1754760647383,-460.0,0.00022639,2]
[378169376,1754760647393,-460.0,0.00022639,2]
[378169377,1754760647402,-912.75,0.00022639,2]
[378169378,1754760647411,-460.0,0.00022639,2]
[378169379,1754760647421,-460.0,0.00022639,2]
[378169380,1754760647431,-460.0,0.0002264,2]
[378169381,1754760647441,-2038.49,0.0002264,2]
[378169382,1754760647450,-460.0,0.0002264,2]
[378169383,1754760647459,-460.0,0.0002264,2]
[378169384,1754760647468,-853.66,0.0002264,2]
[378169385,1754760647478,-460.0,0.0002264,2]
[378169386,1754760647487,-460.0,0.0002264,2]
[378169387,1754760647496,-1605.05,0.0002264,2]
[378169388,1754760647506,-1748.2,0.0002264,2]
[378169389,1754760647515,-249.21,0.0002264,2]
[378169390,1754760647525,-460.0,0.0002264,2]
[378169391,1754760647536,-460.0,0.0002264,2]
[378169392,1754760647545,-734.63,0.0002264,2]
[378169393,1754760647555,-460.0,0.0002264,2]
[378169394,1754760647564,-460.0,0.0002264,2]
[378169395,1754760647574,-460.0,0.0002264,2]
[378169396,1754760647584,-536.11,0.0002264,2]
[378169397,1754760647594,-547.32,0.0002264,2]
[378169398,1754760647603,-460.0,0.0002264,2]
[378169399,1754760647613,-460.0,0.0002264,2]
[378169400,1754760647622,-1497.02,0.0002264,2]
[378169401,1754760647632,-460.0,0.00022641,2]
[378169402,1754760647642,-460.0,0.00022641,2]
[378169403,1754760647651,-460.0,0.00022641,2]
[378169404,1754760647661,-460.0,0.00022641,2]
[378169405,1754760647671,-621.04,0.00022641,2]
[378169406,1754760647680,-460.0,0.00022641,2]
[378169407,1754760647690,-460.0,0.00022641,2]
[378169408,1754760647699,-460.0,0.00022641,2]
[378169409,1754760647709,-460.0,0.00022641,2]
[378169410,1754760647719,-460.0,0.00022641,2]
[378169411,1754760647728,-580.16894444,0.00022641,2]
[378169412,1754760647737,-460.0,0.00022641,2]
[378169413,1754760647747,-460.0,0.00022641,2]
[378169414,1754760647757,-490.67,0.00022641,2]
[378169415,1754760647767,-948.6,0.00022641,2]
[378169416,1754760647776,-1597.6,0.00022641,2]
[378169417,1754760647787,-460.0,0.00022641,2]
[378169418,1754760647796,-3785.91,0.00022641,2]
[378169419,1754760647806,-460.0,0.00022641,2]
[378169420,1754760647816,-460.0,0.00022641,2]
[378169421,1754760647825,-460.0,0.00022641,2]
[378169422,1754760647835,-151.0,0.00022641,7]
[378169423,1754760647844,-460.0,0.00022641,2]
[378169424,1754760647854,-985.24,0.00022641,2]
[378169425,1754760647863,-479.26074784,0.00022641,2]
[378169426,1754760647872,-151.0,0.00022641,7]
[378169427,1754760647881,-612.98,0.00022641,2]
[378169428,1754760647891,-460.0,0.00022641,2]
[378169429,1754760647900,-678.47,0.00022641,2]
[378169430,1754760647910,-151.0,0.00022641,7]
[378169431,1754760647919,-460.0,0.00022641,2]
[378169432,1754760647929,-354.95418606,0.00022641,2]
[378169433,1754760647938,-1095.78,0.00022641,2]
[378169434,1754760647947,-460.0,0.00022641,2]
[378169435,1754760647957,-460.0,0.00022641,2]
[378169436,1754760647966,-1079.1,0.00022641,2]
[378169437,1754760647975,-460.0,0.00022641,2]
[378169438,1754760647985,-460.0,0.00022641,2]
[378169439,1754760647994,-460.0,0.00022641,2]
[378169440,1754760648006,-579.29,0.00022641,2]
[378169441,1754760648016,-540.129389,0.00022641,7]
[378169442,1754760648025,-886.05,0.00022641,2]
[378169443,1754760648035,-540.129389,0.00022641,7]
[378169444,1754760648045,-465.46,0.00022641,2]
[378169445,1754760648055,-460.0,0.00022642,2]
[378169446,1754760648065,-166.12238018,0.00022642,2]
[378169447,1754760648075,-466.25,0.00022642,2]
[378169448,1754760648085,-460.0,0.00022642,2]
[378169449,1754760648094,-460.0,0.00022642,2]
[378169450,1754760648103,-565.82,0.00022642,2]
[378169451,1754760648113,-596.8,0.00022642,2]
[378169452,1754760648123,-460.0,0.00022642,2]
[378169453,1754760648132,-460.0,0.00022642,2]
[378169454,1754760648142,-562.22,0.00022642,2]
[378169455,1754760648152,-489.24,0.00022642,2]
[378169456,1754760648162,-1110.78,0.00022642,2]
[378169457,1754760648172,-151.0,0.00022642,7]
[378169458,1754760648181,-460.0,0.00022642,2]
[378169459,1754760648190,-1309.57,0.00022642,2]
[378169460,1754760648200,-1352.75,0.00022642,2]
[378169461,1754760648210,-460.0,0.00022642,2]
[378169462,1754760648219,-460.0,0.00022642,2]
[378169463,1754760648228,-460.0,0.00022642,2]
[378169464,1754760648237,-460.0,0.00022643,2]
[378169465,1754760648247,-460.0,0.00022643,2]
[378169466,1754760648256,-693.5,0.00022643,2]
[378169467,1754760648266,-460.0,0.00022643,2]
[378169468,1754760648276,-500.59736898,0.00022685,2]
[378169469,1754760648285,-500.0,0.00022685,2]
[378169470,1754760648294,-500.0,0.00022685,2]
[378169471,1754760648304,-500.86414136,0.000227,2]
[378169472,1754760648313,-500.0,0.00022715,2]
[378169473,1754760648322,-500.0,0.00022715,2]
[378169474,1754760648331,-437.32267485,0.00022715,2]
[378169475,1754760648341,-500.0,0.00022715,2]
[378169476,1754760648351,-500.0,0.00022715,2]
[378169477,1754760648360,-500.0,0.00022715,2]
[378169478,1754760648369,-500.0,0.00022715,2]
[378169479,1754760648378,-500.0,0.00022715,2]
[378169480,1754760648388,-500.0,0.00022715,2]
[378169481,1754760648399,-155.2313519,0.00022715,2]
[378169482,1754760648409,-500.0,0.00022715,2]
[378169483,1754760648419,-500.0,0.00022715,2]
[378169484,1754760648428,-500.0,0.00022715,2]
[378169485,1754760648438,-500.0,0.00022715,2]
[378169486,1754760648447,-160.01729465,0.00022715,2]
[378169487,1754760648457,-611.52703329,0.00022718,2]
[378169488,1754760648466,-600.0,0.00022718,2]
[378169489,1754760648476,-500.0,0.00022718,2]
[378169490,1754760648485,-500.0,0.00022718,2]
[378169491,1754760648494,-150.0,0.00022726,2]
[378169492,1754760648503,-500.0,0.00022742,2]
[378169493,1754760648513,-257.31591637,0.00022877,2]
[378169494,1754760648523,-153.0,0.00022881,2]
[378169495,1754760648532,-153.0,0.00022881,2]
[378169496,1754760648541,-153.0,0.00022881,2]
[378169497,1754760648551,-153.0,0.00022881,2]
[378169498,1754760648560,-153.0,0.00022881,2]
[378169499,1754760648569,-153.0,0.00022881,2]
[378169500,1754760648579,-153.0,0.00022881,2]
[378169501,1754760648588,-153.0,0.00022881,2]
[378169502,1754760648598,-153.0,0.00022881,2]
[378169503,1754760648607,-153.0,0.00022881,2]